Workbook

Sheet Spiral_Inductor_Designer
B15: For full functionality, FEMM should be installed. Get FEMM from | E15: www.femm.info
B19: LC Sensor calculations
B20: LDC Device | D20: LDC1612/4
B21: Operating temperature | C21: T | D21: 25 | E21: °C | F21: Enter operating temperature
B22: Sensor capacitance | C22: C | D22: 100 | E22: pF | F22: Select LC tank capacitance
B23: Layers | C23: M | D23: 2 | E23: Layers | F23: Number of layers on PCB board (1≤M≤8)
B24: Turns (per layer) | C24: N | D24: 14 | E24: Turns | F24: Number of turns per layer
B25: =IF(D28="Circular","Outer diameter of the inductor", "Short Side of inductor") -> Short Side of inductor | C25: dOUT | D25: 20 | E25: mm | F25: Outer Diameter of the spiral inductor
B26: diameter entered units | C26: =E25 -> mm | D26: =C26 -> mm
B27: Outer diameter of inductor in mm | D27: =IF(D26="mm",D25,D25*0.0254) -> 20 | E27: mm
B28: Sensor Shape | D28: Racetrack
B29: Long side of inductor | C29: dL | D29: 26.88 | E29: =E25 -> mm | F29: =IF(D29<D25,"Sensor Long Side must be longer than Short Side","") -> 
B30: Long side of inductor in mm | D30: =IF(E29="mm",D29,D29*0.0254) -> 26.88 | E30: mm
B31: ratio of long side to short side | D31: =IF(D28="Circular",1,D30/D27) -> 1.344
B32: ratio of area to unit circle | D32: =1+(4*(D31-1)/PI()) -> 1.437994403
B33: spacing between traces | C33: S | D33: 4 | E33: mil | F33: Space between traces (mm or mil)
B34: spacing units | C34: =E33 -> mil | D34: =C34 -> mil
B35: spacing in mm | D35: =IF(D34="mm",D33,D33*0.0254) -> 0.1016 | E35: mm
B36: width of trace | C36: w | D36: 4 | E36: mil | F36: Width of the trace (mm or mil)
B37: trace width units | C37: =E36 -> mil | D37: =C37 -> mil
B38: trace width in mm | D38: =IF(D37="mm",D36,D36*0.0254) -> 0.1016 | E38: mm
B39: PCB thickness between 1st layer and 2nd layer | C39: h12 | D39: 1.5 | E39: mm | F39: Space between layer 1 and 2 (mm or mil)
B40: PCB thickness between 2nd layer and 3rd layer | C40: h23 | D40: 1.1 | E40: mm | F40: Space between layer 2 and 3 (mm or mil)
B41: PCB thickness between 3rd layer and 4th layer | C41: h34 | D41: 0.185 | E41: mm | F41: Space between layer 3 and 4 (mm or mil)
B42: PCB thickness between 4th layer and 5th layer | C42: h45 | D42: 8 | E42: =E41 -> mm | F42: Space between layer 4 and 5 (mm or mil)
B43: PCB thickness between 5th layer and 6th layer | C43: h56 | D43: 8 | E43: mm | F43: Space between layer 5 and 6 (mm or mil)
B44: PCB thickness between 6th layer and 7th layer | C44: h67 | D44: 8 | E44: mm | F44: Space between layer 6 and 7 (mm or mil)
B45: PCB thickness between 7th layer and 8th layer | C45: h78 | D45: 88 | E45: mm | F45: Space between layer 7 and 8 (mm or mil)
B46: Copper thickness | C46: t | D46: 1 | E46: oz-Cu | F46: Copper layer thickness (mm,Oz-Cu, or mil)
B47: copper thickness units | C47: =E46 -> oz-Cu | D47: =C47 -> oz-Cu
B48: copper thickness in mm | D48: =IF(D47="mm",D46, IF(D47="mil",D46*0.0254,D46*0.0347)) -> 0.0347 | E48: mm
B49: Conductor Resistivity (at 20°C) | C49: pr | D49: 1.68e-08 | E49: Ωm | F49: Use 1.68e-08 for Copper
B50: Conductor Resistivity temperature coef | C50: pr_tc | D50: 0.393 | E50: %/°C | F50: Use 0.393 for Copper
B51: Conductor relative permeability | C51: µr | D51: 1 | F51: Use 1.0 for Copper
B52: Parasitic capacitance | C52: Cpar | D52: 4 | E52: pF | F52: Estimate - generally in the rage of 1 to 5 pf
B53: Copper resistivity at operating temperature | C53: pr_t | D53: =D49*(1+(D50/100)*(D21-20)) -> 1.713012e-08 | E53: Ωm
B54: Coil Fill Ratio | C54: din/dout | D54: =D57/D27 -> 0.71552 | F54: 0.2> >0.8 is recommended
B55: Average diameter | C55: davg | D55: =MAX(0,D32*(D57+D27)/2) -> 24.66908159 | E55: mm
B56: Geometric mean diameter | C56: p | D56: =(D27-D57)/(D27+D57) -> 0.165827271
B57: Inductor inner diameter (mm) | D57: =D27-(2*D24+1)*D38-(2*D24-1)*D35 -> 14.3104 | E57: mm
B58: Inductor innder diameter desired units | C58: =E59 -> mm | D58: =C58 -> mm
B59: Inductor inner diameter | C59: din | D59: =IF(D58="mm",D57,D57/0.0254) -> 14.3104 | E59: mm | F59: Inner diameter of the spiral inductor (mm or mil)
B60: Self inductance per layer | C60: L | D60: =0.5*4*PI()*0.0001*D24*D24*D55*(LN(2.46/D56)+0.2*D56*D56) -> 8.210124581 | E60: µH
B63: PCB thickness L1-2 | D63: =IF(E39="mm",D39,D39*0.0254) -> 1.5 | E63: mm
B64: PCB thickness L2-3 | D64: =IF(E40="mm",D40,D40*0.0254) -> 1.1 | E64: mm
B65: PCB thickness L3-4 | D65: 0.185 | E65: mm
B66: PCB thickness L4-5 | D66: 8 | E66: mm
B67: PCB thickness L5-6 | D67: 8 | E67: mm
B68: PCB thickness L6-7 | D68: 8 | E68: mm
B69: PCB thickness L7-8 | D69: 88 | E69: mm
D71: =IF(E46="mm",D46,D46*0.0254) -> 0.0254
B72: Number of Turns | D72: =D24 -> 14
B73: Self-Inductance per layer | D73: =D60 -> 8.210124581 | E73: µH
B74: Number of Layers | D74: =D23 -> 2
B75: Target distance | D75: =D224 -> 4 | E75: mm
B76: distance i7-i8 | D76: =D63 -> 1.5 | E76: mm
B77: distance i6-i7 | D77: =D89 -> 8 | E77: mm
B78: distance i5-i6 | D78: =D88 -> 8 | E78: mm
B79: distance i4-i5 | D79: =D87 -> 8 | E79: mm
B80: distance i3-i4 | D80: =D86 -> 0.185 | E80: mm
B81: distance i2-i3 | D81: =D85 -> 1.1 | E81: mm
B82: distance i1-i2 | D82: =D84 -> 1.5 | E82: mm
B83: distance L1-i1 | D83: =2*D75 -> 8 | E83: mm
B84: PCB thickness L1-L2 | D84: =D63 -> 1.5 | E84: mm
B85: PCB thickness L2-L3 | D85: =D64 -> 1.1 | E85: mm
B86: PCB thickness L3-L4 | D86: 0.185 | E86: mm
B87: PCB thickness L4-L5 | D87: 8 | E87: mm
B88: PCB thickness L5-L6 | D88: 8 | E88: mm
B89: PCB thickness L6-L7 | D89: 8 | E89: mm
B90: PCB thickness L7-L8 | D90: 88 | E90: mm
B91: T Scaling | D91: =1.5625*D72^2/(1.67*D72^2-5.84*D72+65) -> 0.9861218444
B92: Lmutual sum | D92: =(2*SUM(D99:D126)) -> 1.001126267
B93: scale factor | D93: =D92*D91+D74 -> 2.987232481
B94: Total Inductance free-space | D94: =D93*D73 -> 24.52555082
B95: Target Interaction sum | D95: =SUM(D128:D190) -> -0.03596001547
B96: TI scale | D96: =(D92+D95)*D91+D74 -> 2.951771524
B97: Inductance with Target interaction | D97: =D96*D73 -> 24.23441195
B99: Lmutual for 12 | D99: =IF(2>D74,0,1/((0.184*ABS(SUM(D84:D84))^3-0.525*(SUM(D84:D84))^2+1.038*ABS(SUM(D84:D84))+1.001))) -> 0.5005631335
B100: Lmutual for 13 | D100: =IF(3>D74,0,1/((0.184*ABS(SUM(D84:D85))^3-0.525*(SUM(D84:D85))^2+1.038*ABS(SUM(D84:D85))+1.001))) -> 0
B101: Lmutual for 14 | D101: =IF(4>D74,0,1/((0.184*ABS(SUM(D84:D86))^3-0.525*(SUM(D84:D86))^2+1.038*ABS(SUM(D84:D86))+1.001))) -> 0
B102: Lmutual for 15 | D102: =IF(5>D74,0,1/((0.184*ABS(SUM(D84:D87))^3-0.525*(SUM(D84:D87))^2+1.038*ABS(SUM(D84:D87))+1.001))) -> 0
B103: Lmutual for 16 | D103: =IF(6>D74,0,1/((0.184*ABS(SUM(D84:D88))^3-0.525*(SUM(D84:D88))^2+1.038*ABS(SUM(D84:D88))+1.001))) -> 0
B104: Lmutual for 17 | D104: =IF(7>D74,0,1/((0.184*ABS(SUM(D84:D89))^3-0.525*(SUM(D84:D89))^2+1.038*ABS(SUM(D84:D89))+1.001))) -> 0
B105: Lmutual for 18 | D105: =IF(8>D74,0,1/((0.184*ABS(SUM(D84:D90))^3-0.525*(SUM(D84:D90))^2+1.038*ABS(SUM(D84:D90))+1.001))) -> 0
B106: Lmutual for 23 | D106: =IF(3>D74,0,1/((0.184*ABS(SUM(D85:D85))^3-0.525*(SUM(D85:D85))^2+1.038*ABS(SUM(D85:D85))+1.001))) -> 0
B107: Lmutual for 24 | D107: =IF(4>D74,0,1/((0.184*ABS(SUM(D85:D86))^3-0.525*(SUM(D85:D86))^2+1.038*ABS(SUM(D85:D86))+1.001))) -> 0
B108: Lmutual for 25 | D108: =IF(5>D74,0,1/((0.184*ABS(SUM(D85:D87))^3-0.525*(SUM(D85:D87))^2+1.038*ABS(SUM(D85:D87))+1.001))) -> 0
B109: Lmutual for 26 | D109: =IF(6>D74,0,1/((0.184*ABS(SUM(D85:D88))^3-0.525*(SUM(D85:D88))^2+1.038*ABS(SUM(D85:D88))+1.001))) -> 0
B110: Lmutual for 27 | D110: =IF(7>D74,0,1/((0.184*ABS(SUM(D85:D89))^3-0.525*(SUM(D85:D89))^2+1.038*ABS(SUM(D85:D89))+1.001))) -> 0
B111: Lmutual for 28 | D111: =IF(8>D74,0,1/((0.184*ABS(SUM(D85:D90))^3-0.525*(SUM(D85:D90))^2+1.038*ABS(SUM(D85:D90))+1.001))) -> 0
B112: Lmutual for 34 | D112: =IF(4>D74,0,1/((0.184*ABS(SUM(D86:D86))^3-0.525*(SUM(D86:D86))^2+1.038*ABS(SUM(D86:D86))+1.001))) -> 0
B113: Lmutual for 35 | D113: =IF(5>D74,0,1/((0.184*ABS(SUM(D86:D87))^3-0.525*(SUM(D86:D87))^2+1.038*ABS(SUM(D86:D87))+1.001))) -> 0
B114: Lmutual for 36 | D114: =IF(6>D74,0,1/((0.184*ABS(SUM(D86:D88))^3-0.525*(SUM(D86:D88))^2+1.038*ABS(SUM(D86:D88))+1.001))) -> 0
B115: Lmutual for 37 | D115: =IF(7>D74,0,1/((0.184*ABS(SUM(D86:D89))^3-0.525*(SUM(D86:D89))^2+1.038*ABS(SUM(D86:D89))+1.001))) -> 0
B116: Lmutual for 38 | D116: =IF(8>D74,0,1/((0.184*ABS(SUM(D86:D90))^3-0.525*(SUM(D86:D90))^2+1.038*ABS(SUM(D86:D90))+1.001))) -> 0
B117: Lmutual for 45 | D117: =IF(5>D74,0,1/((0.184*ABS(SUM(D87:D87))^3-0.525*(SUM(D87:D87))^2+1.038*ABS(SUM(D87:D87))+1.001))) -> 0
B118: Lmutual for 46 | D118: =IF(6>D74,0,1/((0.184*ABS(SUM(D87:D88))^3-0.525*(SUM(D87:D88))^2+1.038*ABS(SUM(D87:D88))+1.001))) -> 0
B119: Lmutual for 47 | D119: =IF(7>D74,0,1/((0.184*ABS(SUM(D87:D89))^3-0.525*(SUM(D87:D89))^2+1.038*ABS(SUM(D87:D89))+1.001))) -> 0
B120: Lmutual for 48 | D120: =IF(8>D74,0,1/((0.184*ABS(SUM(D87:D90))^3-0.525*(SUM(D87:D90))^2+1.038*ABS(SUM(D87:D90))+1.001))) -> 0
B121: Lmutual for 56 | D121: =IF(6>D74,0,1/((0.184*ABS(SUM(D88:D88))^3-0.525*(SUM(D88:D88))^2+1.038*ABS(SUM(D88:D88))+1.001))) -> 0
B122: Lmutual for 57 | D122: =IF(7>D74,0,1/((0.184*ABS(SUM(D88:D89))^3-0.525*(SUM(D88:D89))^2+1.038*ABS(SUM(D88:D89))+1.001))) -> 0
B123: Lmutual for 58 | D123: =IF(8>D74,0,1/((0.184*ABS(SUM(D88:D90))^3-0.525*(SUM(D88:D90))^2+1.038*ABS(SUM(D88:D90))+1.001))) -> 0
B124: Lmutual for 67 | D124: =IF(7>D74,0,1/((0.184*ABS(SUM(D89:D89))^3-0.525*(SUM(D89:D89))^2+1.038*ABS(SUM(D89:D89))+1.001))) -> 0
B125: Lmutual for 68 | D125: =IF(8>D74,0,1/((0.184*ABS(SUM(D89:D90))^3-0.525*(SUM(D89:D90))^2+1.038*ABS(SUM(D89:D90))+1.001))) -> 0
B126: Lmutual for 78 | D126: =IF(8>D74,0,1/((0.184*ABS(SUM(D90:D90))^3-0.525*(SUM(D90:D90))^2+1.038*ABS(SUM(D90:D90))+1.001))) -> 0
B128: Lmutual for i1-L1 | D128: =IF(1>D74,0,-1/((0.184*ABS(SUM(D83:D83))^3-0.525*(SUM(D83:D83))^2+1.038*ABS(SUM(D83:D83))+1.001))) -> -0.01430349148
B129: Lmutual for i1-L2 | D129: =IF(2>D74,0,-1/((0.184*ABS(SUM(D83:D84))^3-0.525*(SUM(D83:D84))^2+1.038*ABS(SUM(D83:D84))+1.001))) -> -0.008248256009
B130: Lmutual for i1-L3 | D130: =IF(3>D74,0,-1/((0.184*ABS(SUM(D83:D85))^3-0.525*(SUM(D83:D85))^2+1.038*ABS(SUM(D83:D85))+1.001))) -> 0
B131: Lmutual for i1-L4 | D131: =IF(4>D74,0,-1/((0.184*ABS(SUM(D83:D86))^3-0.525*(SUM(D83:D86))^2+1.038*ABS(SUM(D83:D86))+1.001))) -> 0
B132: Lmutual for i1-L5 | D132: =IF(5>D74,0,-1/((0.184*ABS(SUM(D83:D87))^3-0.525*(SUM(D83:D87))^2+1.038*ABS(SUM(D83:D87))+1.001))) -> 0
B133: Lmutual for i1-L6 | D133: =IF(6>D74,0,-1/((0.184*ABS(SUM(D83:D88))^3-0.525*(SUM(D83:D88))^2+1.038*ABS(SUM(D83:D88))+1.001))) -> 0
B134: Lmutual for i1-L7 | D134: =IF(7>D74,0,-1/((0.184*ABS(SUM(D83:D89))^3-0.525*(SUM(D83:D89))^2+1.038*ABS(SUM(D83:D89))+1.001))) -> 0
B135: Lmutual for i1-L8 | D135: =IF(8>D74,0,-1/((0.184*ABS(SUM(D83:D90))^3-0.525*(SUM(D83:D90))^2+1.038*ABS(SUM(D83:D90))+1.001))) -> 0
B136: Lmutual for i2-L1 | D136: =IF(2>D74,0,-1/((0.184*ABS(SUM(D82:D83))^3-0.525*(SUM(D82:D83))^2+1.038*ABS(SUM(D82:D83))+1.001))) -> -0.008248256009
B137: Lmutual for i2-L2 | D137: =IF(2>D74,0,-1/((0.184*ABS(SUM(D82:D84))^3-0.525*(SUM(D82:D84))^2+1.038*ABS(SUM(D82:D84))+1.001))) -> -0.005160011971
B138: Lmutual for i2-L3 | D138: =IF(3>D74,0,-1/((0.184*ABS(SUM(D82:D85))^3-0.525*(SUM(D82:D85))^2+1.038*ABS(SUM(D82:D85))+1.001))) -> 0
B139: Lmutual for i2-L4 | D139: =IF(4>D74,0,-1/((0.184*ABS(SUM(D82:D86))^3-0.525*(SUM(D82:D86))^2+1.038*ABS(SUM(D82:D86))+1.001))) -> 0
B140: Lmutual for i2-L5 | D140: =IF(5>D74,0,-1/((0.184*ABS(SUM(D82:D87))^3-0.525*(SUM(D82:D87))^2+1.038*ABS(SUM(D82:D87))+1.001))) -> 0
B141: Lmutual for i2-L6 | D141: =IF(6>D74,0,-1/((0.184*ABS(SUM(D82:D88))^3-0.525*(SUM(D82:D88))^2+1.038*ABS(SUM(D82:D88))+1.001))) -> 0
B142: Lmutual for i2-L7 | D142: =IF(7>D74,0,-1/((0.184*ABS(SUM(D82:D89))^3-0.525*(SUM(D82:D89))^2+1.038*ABS(SUM(D82:D89))+1.001))) -> 0
B143: Lmutual for i2-L8 | D143: =IF(8>D74,0,-1/((0.184*ABS(SUM(D82:D90))^3-0.525*(SUM(D82:D90))^2+1.038*ABS(SUM(D82:D90))+1.001))) -> 0
B144: Lmutual for i3-L1 | D144: =IF(3>D74,0,-1/((0.184*ABS(SUM(D81:D83))^3-0.525*(SUM(D81:D83))^2+1.038*ABS(SUM(D81:D83))+1.001))) -> 0
B145: Lmutual for i3-L2 | D145: =IF(3>D74,0,-1/((0.184*ABS(SUM(D81:D84))^3-0.525*(SUM(D81:D84))^2+1.038*ABS(SUM(D81:D84))+1.001))) -> 0
B146: Lmutual for i3-L3 | D146: =IF(3>D74,0,-1/((0.184*ABS(SUM(D81:D85))^3-0.525*(SUM(D81:D85))^2+1.038*ABS(SUM(D81:D85))+1.001))) -> 0
B147: Lmutual for i3-L4 | D147: =IF(4>D74,0,-1/((0.184*ABS(SUM(D81:D86))^3-0.525*(SUM(D81:D86))^2+1.038*ABS(SUM(D81:D86))+1.001))) -> 0
B148: Lmutual for i3-L5 | D148: =IF(5>D74,0,-1/((0.184*ABS(SUM(D81:D87))^3-0.525*(SUM(D81:D87))^2+1.038*ABS(SUM(D81:D87))+1.001))) -> 0
B149: Lmutual for i3-L6 | D149: =IF(6>D74,0,-1/((0.184*ABS(SUM(D81:D88))^3-0.525*(SUM(D81:D88))^2+1.038*ABS(SUM(D81:D88))+1.001))) -> 0
B150: Lmutual for i3-L7 | D150: =IF(7>D74,0,-1/((0.184*ABS(SUM(D81:D89))^3-0.525*(SUM(D81:D89))^2+1.038*ABS(SUM(D81:D89))+1.001))) -> 0
B151: Lmutual for i3-L8 | D151: =IF(8>D74,0,-1/((0.184*ABS(SUM(D81:D90))^3-0.525*(SUM(D81:D90))^2+1.038*ABS(SUM(D81:D90))+1.001))) -> 0
B152: Lmutual for i4-L1 | D152: =IF(4>D74,0,-1/((0.184*ABS(SUM(D80:D83))^3-0.525*(SUM(D80:D83))^2+1.038*ABS(SUM(D80:D83))+1.001))) -> 0
B153: Lmutual for i4-L2 | D153: =IF(4>D74,0,-1/((0.184*ABS(SUM(D80:D84))^3-0.525*(SUM(D80:D84))^2+1.038*ABS(SUM(D80:D84))+1.001))) -> 0
B154: Lmutual for i4-L3 | D154: =IF(4>D74,0,-1/((0.184*ABS(SUM(D80:D85))^3-0.525*(SUM(D80:D85))^2+1.038*ABS(SUM(D80:D85))+1.001))) -> 0
B155: Lmutual for i4-L4 | D155: =IF(4>D74,0,-1/((0.184*ABS(SUM(D80:D86))^3-0.525*(SUM(D80:D86))^2+1.038*ABS(SUM(D80:D86))+1.001))) -> 0
B156: Lmutual for i4-L5 | D156: =IF(5>D74,0,-1/((0.184*ABS(SUM(D80:D87))^3-0.525*(SUM(D80:D87))^2+1.038*ABS(SUM(D80:D87))+1.001))) -> 0
B157: Lmutual for i4-L6 | D157: =IF(6>D74,0,-1/((0.184*ABS(SUM(D80:D88))^3-0.525*(SUM(D80:D88))^2+1.038*ABS(SUM(D80:D88))+1.001))) -> 0
B158: Lmutual for i4-L7 | D158: =IF(7>D74,0,-1/((0.184*ABS(SUM(D80:D89))^3-0.525*(SUM(D80:D89))^2+1.038*ABS(SUM(D80:D89))+1.001))) -> 0
B159: Lmutual for i4-L8 | D159: =IF(8>D74,0,-1/((0.184*ABS(SUM(D80:D90))^3-0.525*(SUM(D80:D90))^2+1.038*ABS(SUM(D80:D90))+1.001))) -> 0
B160: Lmutual for i5-L1 | D160: =IF(5>D74,0,-1/((0.184*ABS(SUM(D79:D83))^3-0.525*(SUM(D79:D83))^2+1.038*ABS(SUM(D79:D83))+1.001))) -> 0
B161: Lmutual for i5-L2 | D161: =IF(5>D74,0,-1/((0.184*ABS(SUM(D79:D84))^3-0.525*(SUM(D79:D84))^2+1.038*ABS(SUM(D79:D84))+1.001))) -> 0
B162: Lmutual for i5-L3 | D162: =IF(5>D74,0,-1/((0.184*ABS(SUM(D79:D85))^3-0.525*(SUM(D79:D85))^2+1.038*ABS(SUM(D79:D85))+1.001))) -> 0
B163: Lmutual for i5-L4 | D163: =IF(5>D74,0,-1/((0.184*ABS(SUM(D79:D86))^3-0.525*(SUM(D79:D86))^2+1.038*ABS(SUM(D79:D86))+1.001))) -> 0
B164: Lmutual for i5-L5 | D164: =IF(5>D74,0,-1/((0.184*ABS(SUM(D79:D87))^3-0.525*(SUM(D79:D87))^2+1.038*ABS(SUM(D79:D87))+1.001))) -> 0
B165: Lmutual for i5-L6 | D165: =IF(6>D74,0,-1/((0.184*ABS(SUM(D79:D88))^3-0.525*(SUM(D79:D88))^2+1.038*ABS(SUM(D79:D88))+1.001))) -> 0
B166: Lmutual for i5-L7 | D166: =IF(7>D74,0,-1/((0.184*ABS(SUM(D79:D89))^3-0.525*(SUM(D79:D89))^2+1.038*ABS(SUM(D79:D89))+1.001))) -> 0
B167: Lmutual for i5-L8 | D167: =IF(8>D74,0,-1/((0.184*ABS(SUM(D79:D90))^3-0.525*(SUM(D79:D90))^2+1.038*ABS(SUM(D79:D90))+1.001))) -> 0
B168: Lmutual for i6-L1 | D168: =IF(6>D74,0,-1/((0.184*ABS(SUM(D78:D83))^3-0.525*(SUM(D78:D83))^2+1.038*ABS(SUM(D78:D83))+1.001))) -> 0
B169: Lmutual for i6-L2 | D169: =IF(6>D74,0,-1/((0.184*ABS(SUM(D78:D84))^3-0.525*(SUM(D78:D84))^2+1.038*ABS(SUM(D78:D84))+1.001))) -> 0
B170: Lmutual for i6-L3 | D170: =IF(6>D74,0,-1/((0.184*ABS(SUM(D78:D85))^3-0.525*(SUM(D78:D85))^2+1.038*ABS(SUM(D78:D85))+1.001))) -> 0
B171: Lmutual for i6-L4 | D171: =IF(6>D74,0,-1/((0.184*ABS(SUM(D78:D86))^3-0.525*(SUM(D78:D86))^2+1.038*ABS(SUM(D78:D86))+1.001))) -> 0
B172: Lmutual for i6-L5 | D172: =IF(6>D74,0,-1/((0.184*ABS(SUM(D78:D87))^3-0.525*(SUM(D78:D87))^2+1.038*ABS(SUM(D78:D87))+1.001))) -> 0
B173: Lmutual for i6-L6 | D173: =IF(6>D74,0,-1/((0.184*ABS(SUM(D78:D88))^3-0.525*(SUM(D78:D88))^2+1.038*ABS(SUM(D78:D88))+1.001))) -> 0
B174: Lmutual for i6-L7 | D174: =IF(7>D74,0,-1/((0.184*ABS(SUM(D78:D89))^3-0.525*(SUM(D78:D89))^2+1.038*ABS(SUM(D78:D89))+1.001))) -> 0
B175: Lmutual for i6-L8 | D175: =IF(8>D74,0,-1/((0.184*ABS(SUM(D78:D90))^3-0.525*(SUM(D78:D90))^2+1.038*ABS(SUM(D78:D90))+1.001))) -> 0
B176: Lmutual for i7-L1 | D176: =IF(7>D74,0,-1/((0.184*ABS(SUM(D77:D83))^3-0.525*(SUM(D77:D83))^2+1.038*ABS(SUM(D77:D83))+1.001))) -> 0
B177: Lmutual for i7-L2 | D177: =IF(7>D74,0,-1/((0.184*ABS(SUM(D77:D84))^3-0.525*(SUM(D77:D84))^2+1.038*ABS(SUM(D77:D84))+1.001))) -> 0
B178: Lmutual for i7-L3 | D178: =IF(7>D74,0,-1/((0.184*ABS(SUM(D77:D85))^3-0.525*(SUM(D77:D85))^2+1.038*ABS(SUM(D77:D85))+1.001))) -> 0
B179: Lmutual for i7-L4 | D179: =IF(7>D74,0,-1/((0.184*ABS(SUM(D77:D86))^3-0.525*(SUM(D77:D86))^2+1.038*ABS(SUM(D77:D86))+1.001))) -> 0
B180: Lmutual for i7-L5 | D180: =IF(7>D74,0,-1/((0.184*ABS(SUM(D77:D87))^3-0.525*(SUM(D77:D87))^2+1.038*ABS(SUM(D77:D87))+1.001))) -> 0
B181: Lmutual for i7-L6 | D181: =IF(7>D74,0,-1/((0.184*ABS(SUM(D77:D88))^3-0.525*(SUM(D77:D88))^2+1.038*ABS(SUM(D77:D88))+1.001))) -> 0
B182: Lmutual for i7-L7 | D182: =IF(7>D74,0,-1/((0.184*ABS(SUM(D77:D89))^3-0.525*(SUM(D77:D89))^2+1.038*ABS(SUM(D77:D89))+1.001))) -> 0
B183: Lmutual for i7-L8 | D183: =IF(8>D74,0,-1/((0.184*ABS(SUM(D77:D90))^3-0.525*(SUM(D77:D90))^2+1.038*ABS(SUM(D77:D90))+1.001))) -> 0
B184: Lmutual for i8-L2 | D184: =IF(8>D74,0,-1/((0.184*ABS(SUM(D76:D84))^3-0.525*(SUM(D76:D84))^2+1.038*ABS(SUM(D76:D84))+1.001))) -> 0
B185: Lmutual for i8-L3 | D185: =IF(8>D74,0,-1/((0.184*ABS(SUM(D76:D85))^3-0.525*(SUM(D76:D85))^2+1.038*ABS(SUM(D76:D85))+1.001))) -> 0
B186: Lmutual for i8-L4 | D186: =IF(8>D74,0,-1/((0.184*ABS(SUM(D76:D86))^3-0.525*(SUM(D76:D86))^2+1.038*ABS(SUM(D76:D86))+1.001))) -> 0
B187: Lmutual for i8-L5 | D187: =IF(8>D74,0,-1/((0.184*ABS(SUM(D76:D87))^3-0.525*(SUM(D76:D87))^2+1.038*ABS(SUM(D76:D87))+1.001))) -> 0
B188: Lmutual for i8-L6 | D188: =IF(8>D74,0,-1/((0.184*ABS(SUM(D76:D88))^3-0.525*(SUM(D76:D88))^2+1.038*ABS(SUM(D76:D88))+1.001))) -> 0
B189: Lmutual for i8-L7 | D189: =IF(8>D74,0,-1/((0.184*ABS(SUM(D76:D89))^3-0.525*(SUM(D76:D89))^2+1.038*ABS(SUM(D76:D89))+1.001))) -> 0
B190: Lmutual for i8-L8 | D190: =IF(8>D74,0,-1/((0.184*ABS(SUM(D76:D90))^3-0.525*(SUM(D76:D90))^2+1.038*ABS(SUM(D76:D90))+1.001))) -> 0
B192: Sensor Free-Space Inductance | D192: =D195 -> 24.52555082 | E192: µH
B193: Sensor Inductance with Target interaction | D193: =D97 -> 24.23441195 | E193: µH
B195: Total Inductance with no target | C195: LTOTAL | D195: =D94 -> 24.52555082 | E195: µH | F195: =IF(D195="Error","Too many turns or outer diameter too small!","") -> 
B196: Sensor Operating Frequency | D196: =IF(D20="LDC0851",SQRT(2)/(2*PI()*SQRT(D195*0.000001*(D22+D52)*0.000000000001)),1/(2*PI()*SQRT(D195*0.000001*(D22+D52)*0.000000000001))) -> 3151331.401 | E196: Hz
B197: Sensor Operating Frequency no target | C197: fRES | D197: =IF(D196>300000,D196/1000000,D196/1000) -> 3.151331401 | E197: =IF(D196>300000,"MHz","kHz") -> MHz | F197: =IF(ISERROR(D197),"",IF(D197>(D207*1000),"Sensor Frequency is too high, reduce C","")) -> 
B198: coil length per layer | C198: l | D198: =D24*(D31-1)*2*D27+PI()*D24*(D27+D57)/2 -> 947.1651041 | E198: mm
B199: DC resistance | C199: Rdc | D199: =D53*D198*0.001*D23/(D38*0.001*D48*0.001) -> 9.204345397 | E199: Ω
B200: Skin depth | C200: sd | D200: =SQRT(D49/(4*PI()*PI()*0.0000001*D51*D196))*1000 -> 0.03674749454 | E200: mm
B201: AC resistance (skin effect only) | C201: Rs | D201: =D199*D48/(D200*(1-EXP(-D48/D200))) -> 14.22407705 | E201: Ω
B202: Resonance impedance estimate | C202: Rp | D202: =(1/D201)*(D195*0.000001/(D22*0.000000000001)) -> 17242.27923 | E202: Ω
B203: Rp with no Target | C203: RP | D203: =D202/1000 -> 17.24227923 | E203: kΩ
B204: Q factor | C204: Q | D204: =(1/D201)*SQRT(D195*0.000001/((D22+D52)*0.000000000001)) -> 34.14040112
B207: Self resonant frequency (estimated) | C207: SRF | D207: =1/(2*PI()*SQRT(D195*0.000001*D52*0.000000000001))/1000000 -> 16.06870031 | E207: MHz | F207: SRF must be >1.25*Fsensor
B208: Target Material | D208: 430 Stainless Steel | F208: Select Air for No Target
D209: Target Materials:
D210: 1006 Steel
D211: 304 Stainless Steel
D212: 316 Stainless Steel
D213: 416 stainless steel, annealed
D214: 430 Stainless Steel
D215: Air
D216: Aluminum, 1100
D217: Aluminum, 6061-T6
D218: Copper
D219: Titanium
B220: Other target material - enter here & select above | D220: enter here | F220: Enter exactly as named in FEMM materials library
B221: Target Thickness | D221: 0.15 | E221: mm
B222: Target Distance | C222: D | D222: 4 | E222: mm
C223: =E222 -> mm | D223: =C223 -> mm
B224: Target Distance in mm | D224: =IF(D223="mm",D222,D222*0.0254) -> 4 | E224: mm
B225: Target Distance/Sensor Diameter Ratio | D225: =D224/D27 -> 0.2
B226: RP Adjust Factor | D226: =12.413*D225^4 - 11.107*D225^3 - 1.1159*D225^2 + 3.6107*D225+ 0.0669 -> 0.6754088
... 71 more rows

Sheet Sheet1
E6: 5.7e-05 | F6: ohm/cm
E7: 100 | F7: cm/m
E8: =E7*E6 -> 0.0057 | F8: ohm/m
E9: =1/E8 -> 175.4385965 | F9: mS
C17: 0.5mm
C18: L | D18: 3.318556497 | E18: 3.16859
C19: Rp | D19: 3.313304491
C20: Q | D20: 27.15977827
C21: Sensor Frequency with Target | D21: 5.8374277 | E21: 5.973970846
C22: Target Movement shift | D22: 0.001
C23: Sensor Frequency at shifted target | D23: 5.83818988
C24: Sensitivity (frequency shift) | D24: 130.5677868
C30: 16000000
C31: 2000
C32: =C30/C31 -> 8000
C33: =C32/16 -> 500
C34: =DEC2HEX(C33) -> 1F4
C37: 400
C38: =HEX2DEC("400") -> 1024
C39: =C38*16 -> 16384
C40: =16000000/C39 -> 976.5625
